bitfinex/quotes_SOLUSD_20251007
["timestamp","ask_amount","ask_price","bid_price","bid_amount"]
[1759875812828,0.71,223.62,223.58,2.1120796]
[1759875813128,32.01,223.61,223.58,2.1120796]
[1759875813719,0.71,223.6,223.55,25.27325735]
[1759875813921,15.65024695,223.64,223.56,2.1120796]
[1759875814125,0.71,223.6,223.57,2.1120796]
[1759875814327,31.3,223.59,223.57,2.1120796]
[1759875814835,31.3,223.59,223.57,2.7720796]
[1759875816142,31.3,223.59,223.57,2.1120796]
[1759875818137,31.3,223.59,223.58,2.1120796]
[1759875818329,0.71,223.61,223.57,2.1120796]
[1759875818526,32.01,223.6,223.55,25.93317715]
[1759875818831,0.71,223.59,223.57,2.1120796]
[1759875819032,31.3,223.6,223.57,2.1120796]
[1759875819232,32.0,223.6,223.58,2.1120796]
[1759875820642,31.3,223.59,223.58,2.1120796]
[1759875823833,32.0,223.59,223.56,2.1120796]
[1759875824033,0.7,223.58,223.56,2.1120796]
[1759875824861,0.7,223.58,223.49,3.5893661]
[1759875824862,0.7,223.57,223.49,3.5893661]
[1759875825152,32.0,223.56,223.5,2.7920796]
[1759875825333,5.17327219,223.55,223.5,2.7920796]
[1759875825537,0.7,223.54,223.5,2.7920796]
[1759875825738,31.3,223.53,223.5,2.7920796]
[1759875825926,31.3,223.53,223.5,2.1120796]
[1759875826127,31.3,223.53,223.51,2.1120796]
[1759875826335,31.3,223.53,223.52,2.7920796]
[1759875828033,31.3,223.53,223.52,7.26595218]
[1759875828233,0.7,223.6,223.52,7.26595218]
[1759875828449,31.3,223.58,223.57,2.1120796]
[1759875829330,31.3,223.58,223.55,0.68]
[1759875829650,31.3,223.58,223.56,2.1120796]
[1759875831730,32.0,223.58,223.55,2.1120796]
[1759875832349,36.4726859,223.58,223.54,2.1120796]
[1759875832534,0.7,223.57,223.54,2.1120796]
[1759875833656,31.3,223.58,223.54,2.7920796]
[1759875833825,32.0,223.58,223.55,2.1120796]
[1759875834935,36.47276133,223.58,223.55,2.1120796]
[1759875836846,0.7,223.57,223.55,2.1120796]
[1759875837155,0.7,223.56,223.55,2.1120796]
[1759875837457,36.47276133,223.58,223.55,2.1120796]
[1759875837654,36.47276133,223.58,223.56,2.1120796]
[1759875837857,0.7,223.57,223.56,2.1120796]
[1759875838159,0.7,223.57,223.53,5.16364425]
[1759875838361,0.7,223.56,223.51,0.69]
[1759875838652,31.3,223.55,223.47,10.87647521]
[1759875838833,0.7,223.54,223.49,2.1120796]
[1759875839030,0.7,223.53,223.49,2.1120796]
[1759875839240,32.0,223.52,223.49,2.1120796]
[1759875839441,31.3,223.51,223.49,2.1120796]
[1759875839846,31.3,223.51,223.5,2.1120796]
[1759875840042,31.3,223.51,223.47,5.16482528]
[1759875840247,31.3,223.51,223.5,2.1120796]
[1759875840632,32.0,223.51,223.46,25.2748993]
[1759875840833,0.7,223.56,223.5,2.1120796]
[1759875841056,31.3,223.55,223.53,2.1120796]
[1759875841637,31.3,223.55,223.51,0.69]
[1759875841638,31.3,223.55,223.52,2.1120796]
[1759875842039,31.3,223.55,223.54,2.1120796]
[1759875843261,20.8,223.63,223.54,2.1120796]
[1759875843262,2.1120796,223.62,223.54,2.1120796]
[1759875843438,32.0,223.61,223.58,2.1120796]
[1759875843777,31.3,223.6,223.58,2.1120796]
[1759875843941,31.3,223.59,223.58,2.1120796]
[1759875844261,31.3,223.59,223.56,5.16290986]
[1759875844434,31.3,223.59,223.57,2.1120796]
[1759875845038,31.3,223.59,223.56,2.1120796]
[1759875845244,32.0,223.59,223.56,2.1120796]
[1759875846137,32.0,223.59,223.55,6.58527831]
[1759875847356,32.0,223.59,223.56,2.1120796]
[1759875848367,0.7,223.58,223.56,2.1120796]
[1759875850264,0.7,223.57,223.56,2.1120796]
[1759875850866,36.47254679,223.59,223.56,2.1120796]
[1759875851050,0.7,223.58,223.56,2.1120796]
[1759875855382,5.17271904,223.58,223.56,2.1120796]
[1759875855585,0.7,223.57,223.5,4.47427293]
[1759875855873,32.0,223.56,223.51,2.1120796]
[1759875856071,0.7,223.55,223.51,2.8020796]
[1759875856256,0.7,223.55,223.52,2.1120796]
[1759875856659,0.7,223.55,223.52,2.8020796]
[1759875857772,35.77315877,223.56,223.52,2.1120796]
[1759875857981,0.7,223.54,223.52,2.1120796]
[1759875858192,36.47315877,223.56,223.52,2.1120796]
[1759875858474,0.7,223.55,223.52,2.1120796]
[1759875858845,0.7,223.55,223.5,5.16426577]
[1759875859039,0.7,223.54,223.51,2.1120796]
[1759875859281,35.77315877,223.56,223.5,2.1120796]
[1759875859282,32.0,223.53,223.5,2.1120796]
[1759875859650,0.7,223.52,223.5,2.1120796]
[1759875860072,5.17391923,223.52,223.49,2.1120796]
[1759875860268,0.7,223.51,223.45,5.16521552]
[1759875860469,32.0,223.5,223.46,2.1120796]
[1759875860978,0.7,223.49,223.46,2.1120796]
[1759875861164,31.3,223.5,223.46,2.8020796]
[1759875861475,32.0,223.5,223.47,2.1120796]
[1759875863977,0.7,223.5,223.47,2.1120796]
[1759875864290,31.3,223.49,223.47,2.1120796]
[1759875864672,32.0,223.49,223.47,2.1120796]
[1759875864974,32.0,223.49,223.46,2.8020796]
[1759875866290,31.3,223.49,223.46,2.8020796]
[1759875867074,31.3,223.49,223.46,2.04328453]
[1759875867278,31.99,223.49,223.46,2.04328453]
[1759875868287,31.3,223.49,223.46,1.35328453]
[1759875868583,31.99,223.49,223.46,1.35328453]
[1759875869464,0.69,223.48,223.43,0.2]
[1759875869788,31.3,223.49,223.44,1.35328453]
[1759875869789,0.69,223.47,223.44,1.35328453]
[1759875870086,31.99,223.46,223.43,0.2]
[1759875870869,0.69,223.46,223.43,0.2]
[1759875871089,31.3,223.45,223.43,0.2]
[1759875871305,0.69,223.44,223.43,0.2]
[1759875871583,5.1654744,223.44,223.43,0.2]
[1759875873176,6.51875893,223.44,223.43,0.2]
[1759875873380,5.1654744,223.44,223.43,0.2]
[1759875876601,36.4854744,223.44,223.43,0.2]
[1759875877608,5.1654744,223.44,223.43,0.2]
[1759875877808,36.4854744,223.44,223.43,0.2]
[1759875883797,37.83875893,223.44,223.43,0.2]
[1759875887509,48.71523414,223.44,223.43,0.2]
[1759875888314,48.71523414,223.44,223.43,1e-08]
[1759875890524,10.87647521,223.43,223.42,1e-08]
[1759875890989,10.87647521,223.43,223.35,0.2]
[1759875890990,10.87647521,223.39,223.35,0.2]
[1759875891188,1.35328453,223.36,223.35,0.2]
[1759875891384,32.67328453,223.36,223.35,0.2]
[1759875891607,33.38328453,223.36,223.35,0.2]
[1759875892197,37.86036189,223.36,223.35,0.2]
[1759875893907,57.95036189,223.36,223.35,0.92]
[1759875894407,57.95036189,223.36,223.35,0.2]
[1759875894791,58.66036189,223.36,223.35,0.2]
[1759875894989,69.5368371,223.36,223.35,0.2]
[1759875895822,10.87647521,223.35,223.34,0.2]
[1759875896007,10.87647521,223.35,223.34,1e-08]
[1759875896205,11.58647521,223.35,223.34,1e-08]
[1759875896401,16.06375302,223.35,223.34,1e-08]
[1759875898604,19.03707302,223.35,223.34,1e-08]
[1759875898905,20.83115702,223.35,223.34,1e-08]
[1759875899426,20.83115702,223.35,223.32,1e-08]
[1759875899427,29.17546192,223.33,223.32,1e-08]
[1759875899604,61.84874645,223.33,223.32,1e-08]
[1759875899806,62.55874645,223.33,223.32,1e-08]
[1759875900406,77.91290043,223.33,223.32,1e-08]
[1759875901529,82.68083025,223.33,223.32,1e-08]
[1759875901725,80.88666577,223.33,223.32,1e-08]
[1759875903112,77.91290043,223.33,223.32,1e-08]
[1759875903326,80.88628299,223.33,223.32,1e-08]
[1759875903529,72.51082107,223.33,223.32,1e-08]
[1759875905620,39.12753654,223.33,223.32,1e-08]
[1759875905824,5.8309633,223.33,223.32,0.71000001]
[1759875906126,57.9509633,223.33,223.32,0.71000001]
[1759875906514,69.53743851,223.33,223.32,1e-08]
[1759875907226,20.8,223.3,223.26,0.2]
[1759875907535,1.35328453,223.27,223.26,0.2]
[1759875907829,37.1521666,223.27,223.26,0.2]
[1759875908208,35.79888207,223.27,223.26,0.2]
[1759875910832,4.47888207,223.27,223.26,0.2]
[1759875911039,35.79888207,223.27,223.26,0.2]
[1759875911828,35.79888207,223.27,223.26,0.91]
[1759875912136,37.1521666,223.27,223.26,0.2]
[1759875913312,37.8621666,223.27,223.26,0.2]
[1759875913531,37.1521666,223.27,223.26,0.2]
[1759875915635,37.1521666,223.27,223.26,0.91]
[1759875915813,5.8321666,223.27,223.26,0.91]
[1759875916016,57.9521666,223.27,223.26,0.91]
[1759875916425,57.9521666,223.27,223.26,0.2]
[1759875917615,58.6621666,223.27,223.26,0.2]
[1759875917817,57.9521666,223.27,223.26,0.2]
[1759875918938,57.9521666,223.27,223.26,0.91]
[1759875920246,134.25328453,223.29,223.26,0.91]
[1759875920421,31.32,223.28,223.26,0.91]
[1759875920617,31.32,223.27,223.26,0.2]
[1759875921040,31.32,223.27,223.26,0.91]
[1759875923341,35.79888207,223.27,223.26,0.91]
[1759875924042,35.79888207,223.27,223.26,0.2]
[1759875924442,37.1521666,223.27,223.26,0.2]
[1759875924647,35.79888207,223.27,223.26,0.2]
[1759875924825,37.1521666,223.27,223.26,0.2]
[1759875926528,37.1521666,223.27,223.26,0.91]
[1759875927744,35.79888207,223.27,223.26,0.91]
[1759875927949,31.32,223.27,223.26,0.91]
[1759875928531,35.79888207,223.27,223.26,0.91]
[1759875929043,4.47888207,223.27,223.26,0.91]
[1759875929242,35.79888207,223.27,223.26,0.91]
[1759875930634,31.32,223.27,223.26,0.91]
[1759875932640,4.47838835,223.3,223.26,3.02880552]
[1759875932842,31.32,223.29,223.27,0.72]
[1759875933253,31.32,223.29,223.27,2.83880552]
[1759875933942,31.32,223.29,223.28,0.72]
[1759875935346,31.32,223.29,223.28,2.83880552]
[1759875935668,31.32,223.29,223.28,7.3174796]
[1759875936462,31.32,223.29,223.28,2.83880552]
[1759875936758,31.32,223.29,223.28,7.31748699]
[1759875937049,21.51,223.36,223.28,7.31748699]
[1759875937050,31.32,223.3,223.28,7.31748699]
[1759875937254,31.32,223.3,223.29,2.83880552]
[1759875941856,32.04,223.3,223.27,20.8]
[1759875942159,32.04,223.3,223.28,2.11880552]
[1759875942357,36.51831709,223.3,223.26,0.2]
[1759875942556,0.72,223.29,223.26,0.2]
[1759875943344,35.79831709,223.3,223.26,0.2]
[1759875943546,0.72,223.35,223.29,2.11880552]
[1759875943739,35.79747828,223.34,223.3,2.11880552]
[1759875944065,35.79747828,223.34,223.3,2.83880552]
[1759875944066,36.51747828,223.34,223.3,2.83880552]
[1759875945560,36.51747828,223.34,223.3,0.72]
[1759875947268,31.32,223.33,223.31,2.83880552]
[1759875947666,8.30678295,223.37,223.32,2.83880552]
[1759875947845,5.19626845,223.41,223.36,2.11880552]
[1759875948050,31.32,223.4,223.36,2.83880552]
[1759875948249,31.32,223.4,223.38,2.11880552]
[1759875948448,31.32,223.4,223.38,2.83880552]
[1759875948850,31.32,223.4,223.39,2.11880552]
[1759875950662,35.79627573,223.4,223.35,0.72]
[1759875950863,36.51627573,223.4,223.33,2.11880552]
[1759875951169,0.72,223.39,223.34,2.11880552]
[1759875951373,0.72,223.38,223.34,2.11880552]
[1759875951544,31.3,223.37,223.34,2.11880552]
[1759875951947,32.02,223.37,223.34,2.11880552]
[1759875952188,31.3,223.37,223.36,2.11880552]
[1759875952361,31.3,223.37,223.36,2.83880552]
[1759875953463,5.19587903,223.42,223.36,7.31588288]
[1759875953670,31.3,223.41,223.39,2.11880552]
[1759875956575,35.77614635,223.41,223.39,2.11880552]
[1759875957980,31.3,223.41,223.4,2.78880552]
[1759875958153,31.3,223.41,223.4,2.11880552]
[1759875958355,4.47568334,223.43,223.4,2.11880552]
[1759875958555,36.48568334,223.43,223.41,2.11880552]
[1759875959379,35.77568334,223.43,223.41,2.11880552]
[1759875959682,31.3,223.43,223.42,2.11880552]
[1759875960062,31.3,223.43,223.42,2.78880552]
[1759875961276,0.71,223.48,223.42,2.78880552]
[1759875961484,31.3,223.47,223.45,2.11880552]
[1759875961681,32.01,223.47,223.45,2.11880552]
[1759875962061,32.01,223.47,223.46,2.11880552]
[1759875962256,31.3,223.47,223.46,2.11880552]
[1759875962581,31.3,223.47,223.46,2.78880552]
[1759875963486,5.18407274,223.51,223.46,2.78880552]
[1759875963681,31.3,223.5,223.49,2.11880552]
[1759875963896,32.01,223.5,223.47,2.11880552]
[1759875964078,0.71,223.49,223.47,2.11880552]
[1759875965070,0.71,223.49,223.46,2.11880552]
[1759875965788,5.18458312,223.49,223.47,2.11880552]
[1759875966687,5.18458312,223.49,223.4,79.87]
[1759875966688,0.71,223.48,223.4,79.87]
[1759875966986,32.01,223.47,223.4,2.78880552]
[1759875967185,0.71,223.46,223.4,2.78880552]
[1759875967386,0.71,223.46,223.41,2.11880552]
[1759875967688,5.18515107,223.46,223.42,2.11880552]
[1759875967867,31.3,223.47,223.45,2.11880552]
[1759875968187,35.77441245,223.5,223.46,2.78880552]
[1759875968365,35.77441245,223.5,223.47,2.11880552]
[1759875968761,31.3,223.5,223.48,2.11880552]
[1759875970684,35.77434553,223.5,223.48,2.11880552]
[1759875970987,35.77434553,223.5,223.43,20.8]
[1759875970988,36.48434553,223.5,223.46,2.11880552]
[1759875973089,35.77434553,223.5,223.46,2.11880552]
[1759875973279,36.48434553,223.5,223.46,2.11880552]
[1759875973897,36.48434553,223.5,223.47,2.11880552]
[1759875976778,31.3,223.5,223.48,2.11880552]
[1759875976979,31.3,223.5,223.49,2.11880552]
[1759875977703,31.3,223.5,223.48,2.11880552]
[1759875978069,32.01,223.5,223.48,2.11880552]
[1759875978384,31.3,223.5,223.48,2.11880552]
[1759875980898,32.01,223.5,223.48,2.11880552]
[1759875981994,36.48433972,223.5,223.48,2.11880552]
[1759875982200,0.71,223.49,223.42,21.47]
[1759875982503,31.99,223.48,223.43,2.11880552]
[1759875982872,0.71,223.47,223.43,2.78880552]
[1759875983101,5.18500254,223.47,223.43,2.78880552]
[1759875983601,2.11880552,223.44,223.35,0.67]
[1759875983790,31.99,223.43,223.35,2.78880552]
[1759875983996,31.28,223.43,223.4,2.11880552]
[1759875984193,31.28,223.43,223.4,0.67]
[1759875984409,31.28,223.43,223.4,2.78880552]
[1759875986402,31.28,223.43,223.42,2.11880552]
[1759875986592,20.8,223.4,223.33,13.44417307]
[1759875986904,34.26880552,223.39,223.31,2.11880552]
[1759875987107,4.47687693,223.37,223.31,2.11880552]
[1759875987401,32.13,223.36,223.31,2.11880552]
[1759875987598,0.67,223.35,223.32,2.11880552]
[1759875987784,0.67,223.34,223.32,2.11880552]
[1759875989107,35.9371442,223.36,223.31,2.06501422]
[1759875989297,36.6071442,223.36,223.31,2.06501422]
[1759875989599,0.67,223.35,223.31,1.35501422]
[1759875989996,35.9371442,223.36,223.31,1.35501422]
[1759875990297,5.14729594,223.35,223.31,1.35501422]
[1759875990603,0.67,223.34,223.31,1.35501422]
[1759875991924,32.13,223.36,223.29,0.71]
[1759875992207,32.13,223.36,223.31,1.35501422]
[1759875992508,0.67,223.35,223.32,1.35501422]
[1759875992687,0.67,223.34,223.32,1.35501422]
[1759875993397,5.14607537,223.41,223.33,2.06501422]
[1759875993589,31.48,223.41,223.4,1.35501422]
[1759875993790,0.67,223.45,223.4,2.06501422]
[1759875993998,4.47525876,223.46,223.42,1.35501422]
[1759875994206,31.48,223.45,223.42,1.35501422]
[1759875994688,0.67,223.48,223.44,1.35501422]
[1759875994878,32.17,223.48,223.46,1.35501422]
[1759875995278,31.5,223.48,223.46,1.35501422]
[1759875995494,31.5,223.48,223.47,1.35501422]
[1759875996105,35.97467334,223.48,223.4,10.87647521]
[1759875996295,0.67,223.47,223.4,1.35501422]
[1759875996495,37.32968756,223.48,223.41,1.35501422]
[1759875996803,0.67,223.46,223.42,1.35501422]
[1759875996984,0.67,223.45,223.42,1.35501422]
[1759875997185,5.14531539,223.45,223.42,1.35501422]
[1759875999499,33.55501422,223.44,223.32,0.68]
[1759875999808,33.55501422,223.44,223.35,1.35501422]
[1759875999809,1.35501422,223.42,223.35,1.35501422]
[1759875999988,0.7,223.41,223.35,1.35501422]
[1759876000189,1.35501422,223.42,223.24,22.39717359]
[1759876000190,32.22,223.4,223.24,22.39717359]
[1759876000499,0.7,223.39,223.34,1.35501422]
[1759876000692,0.7,223.39,223.34,2.03501422]
[1759876001098,0.7,223.38,223.34,1.35501422]
[1759876001412,32.22,223.4,223.34,1.35501422]
[1759876001605,32.22,223.4,223.35,1.35501422]
[1759876001806,0.7,223.39,223.35,1.35501422]
[1759876002315,0.7,223.38,223.35,1.35501422]
[1759876003516,0.7,223.38,223.34,1.35501422]
[1759876003692,0.7,223.38,223.33,22.15501422]
[1759876003892,0.7,223.38,223.33,27.31263069]
[1759876004318,0.7,223.38,223.33,22.83501422]
[1759876004697,0.7,223.38,223.33,27.31262812]
[1759876004901,0.7,223.38,223.34,0.68]
[1759876005895,0.7,223.38,223.33,26.63262812]
[1759876006199,0.7,223.38,223.34,1.35501422]
[1759876006402,0.7,223.38,223.34,2.03501422]
[1759876006595,0.7,223.38,223.34,6.51249051]
[1759876007002,36.69627899,223.4,223.34,5.83249051]
[1759876007301,36.69627899,223.4,223.34,6.51249051]
[1759876007502,36.69627899,223.4,223.34,2.03501422]
[1759876008933,5.17647966,223.39,223.34,1.35501422]
[1759876009098,4.47647966,223.39,223.34,1.35501422]
[1759876009299,0.7,223.38,223.34,1.35501422]
[1759876009494,0.7,223.37,223.34,1.35501422]
[1759876009800,5.17647966,223.39,223.34,5.83248454]
[1759876010102,0.7,223.38,223.34,5.83248454]
[1759876010308,0.7,223.38,223.34,1.35501422]
[1759876011727,0.7,223.38,223.34,2.03501422]
[1759876012525,0.7,223.38,223.34,6.51242966]
[1759876012726,0.7,223.38,223.35,1.35501422]
[1759876013397,36.6964596,223.4,223.36,1.35501422]
[1759876013604,35.9964596,223.4,223.37,0.68]
[1759876013825,0.7,223.46,223.39,1.35501422]
[1759876014027,0.7,223.45,223.42,1.35501422]
[1759876014328,31.44,223.46,223.44,1.35501422]
[1759876014525,31.44,223.46,223.45,1.35501422]
[1759876014708,32.14,223.46,223.38,10.87647521]
[1759876014914,32.14,223.46,223.43,1.35501422]
[1759876015110,0.7,223.45,223.42,1.35501422]
[1759876018438,0.72,223.44,223.37,0.7]
[1759876018743,0.72,223.44,223.38,1.35501422]
[1759876018921,0.72,223.43,223.37,1.35501422]
[1759876019111,32.2,223.42,223.37,1.35501422]
[1759876019311,0.72,223.41,223.37,2.05501422]
[1759876020332,4.47608899,223.41,223.37,1.35501422]
[1759876020512,4.47608899,223.41,223.35,1.35501422]
[1759876020513,0.72,223.4,223.35,1.35501422]
[1759876020711,4.47608899,223.41,223.37,1.35501422]
[1759876021021,4.47608899,223.41,223.37,2.05501422]
[1759876021222,4.47608899,223.41,223.37,1.35501422]
[1759876021415,0.72,223.4,223.36,1.35501422]
[1759876021622,4.47608899,223.41,223.36,1.35501422]
[1759876021808,5.19608899,223.41,223.37,0.7]
[1759876022011,5.19608899,223.41,223.36,1.35501422]
[1759876022218,0.72,223.4,223.36,1.35501422]
[1759876022418,0.72,223.39,223.36,1.35501422]
[1759876022619,0.72,223.38,223.36,1.35501422]
[1759876022830,0.72,223.4,223.36,1.35501422]
[1759876023032,35.95596627,223.42,223.38,1.35501422]
[1759876023237,36.67596627,223.42,223.37,2.05501422]
[1759876023531,36.67596627,223.42,223.38,0.7]
[1759876024522,35.95596627,223.42,223.39,1.35501422]
[1759876024933,36.67596627,223.42,223.39,1.35501422]
[1759876025140,36.67596627,223.42,223.38,2.05501422]
[1759876025736,36.67596627,223.42,223.38,1.35501422]
[1759876025936,0.72,223.41,223.37,1.35501422]
[1759876026132,0.72,223.41,223.38,1.35501422]
[1759876026520,31.48,223.42,223.39,2.05501422]
[1759876026718,35.95594489,223.42,223.39,1.35501422]
[1759876027037,35.95594489,223.42,223.37,2.05501422]
[1759876027038,0.72,223.41,223.37,2.05501422]
[1759876028717,35.95594489,223.42,223.38,2.05501422]
[1759876028913,20.03935616,223.52,223.41,1.35501422]
[1759876028914,5.19490695,223.47,223.41,1.35501422]
[1759876029128,5.19490695,223.47,223.43,1.35501422]
[1759876029129,31.46,223.46,223.43,1.35501422]
[1759876029330,0.72,223.45,223.43,1.35501422]
[1759876029720,0.72,223.44,223.4,1.35501422]
[1759876029920,0.72,223.43,223.39,1.35501422]
[1759876030127,0.72,223.42,223.37,1.35501422]
[1759876030440,0.72,223.42,223.38,2.05501422]
[1759876030615,4.47583328,223.43,223.38,2.05501422]
[1759876030818,4.47550342,223.44,223.4,1.35501422]
[1759876031017,4.47550342,223.44,223.4,2.05501422]
[1759876031216,5.19550342,223.44,223.4,2.05501422]
[1759876031443,5.19550342,223.44,223.35,26.54684813]
[1759876031444,36.65519526,223.46,223.41,2.05501422]
[1759876031638,0.72,223.45,223.4,1.35501422]
[1759876031838,0.72,223.45,223.4,2.05501422]
[1759876032038,5.1956103,223.44,223.4,2.05501422]
[1759876032629,5.1956103,223.44,223.41,1.35501422]
[1759876033541,0.72,223.43,223.39,1.35501422]
[1759876034228,5.19586374,223.43,223.39,1.35501422]
[1759876035439,0.72,223.42,223.37,1.35501422]
[1759876035640,0.72,223.41,223.35,20.8]
[1759876035826,0.72,223.4,223.34,2.05501422]
[1759876036035,0.72,223.4,223.35,20.8]
[1759876036219,31.44,223.42,223.34,1.35501422]
[1759876036220,0.72,223.39,223.34,1.35501422]
[1759876036422,0.72,223.39,223.34,2.05501422]
[1759876036644,0.72,223.41,223.35,0.7]
[1759876037228,0.72,223.41,223.35,2.05501422]
[1759876037426,0.72,223.4,223.34,1.35501422]
[1759876038633,0.72,223.4,223.35,2.05501422]
[1759876038838,0.72,223.39,223.35,2.05501422]
[1759876039342,5.1965285,223.39,223.35,2.05501422]
[1759876039938,4.4765285,223.39,223.35,2.05501422]
[1759876041258,0.72,223.39,223.35,1.35501422]
[1759876043164,4.47607537,223.41,223.36,2.05501422]
[1759876043331,4.47607537,223.41,223.37,0.7]
[1759876043531,5.19607537,223.41,223.37,0.7]
[1759876043732,5.19607537,223.41,223.36,1.35501422]
[1759876043934,31.44,223.42,223.36,4.47704235]
[1759876044140,31.42,223.45,223.4,1.35501422]
[1759876044355,31.42,223.45,223.4,2.05501422]
[1759876044564,31.42,223.45,223.42,1.35501422]
[1759876044935,31.42,223.45,223.42,2.05501422]
[1759876045135,31.42,223.45,223.43,0.7]
[1759876046241,31.42,223.45,223.42,1.35501422]
[1759876046464,31.42,223.45,223.42,2.05501422]
[1759876046663,35.89533298,223.45,223.42,2.05501422]
[1759876046959,36.61533298,223.45,223.42,1.35501422]
[1759876047157,36.61533298,223.45,223.41,1.35501422]
[1759876047363,35.89533298,223.45,223.41,1.35501422]
[1759876047549,35.89533298,223.45,223.42,2.06501422]
[1759876047752,35.89533298,223.45,223.42,1.35501422]
[1759876049478,31.42,223.45,223.42,2.06501422]
[1759876050064,35.89529185,223.45,223.42,2.06501422]
[1759876050454,36.57529185,223.45,223.42,1.35501422]
[1759876051145,36.57529185,223.45,223.42,2.11519598]
[1759876051350,35.89529185,223.45,223.4,0.71]
[1759876051549,35.89529185,223.45,223.42,2.11519598]
[1759876051550,0.68,223.44,223.42,2.11519598]
[1759876051744,35.89529185,223.45,223.42,2.82519598]
[1759876051945,36.57529185,223.45,223.42,2.11519598]
[1759876053266,35.89529185,223.45,223.42,2.11519598]
[1759876053566,35.89529185,223.45,223.42,2.82519598]
[1759876054655,47.08347712,223.45,223.36,10.87647521]
[1759876054868,2.11519598,223.43,223.34,0.71]
[1759876055173,32.06,223.42,223.36,2.11519598]
[1759876055350,2.79519598,223.41,223.32,0.71]
[1759876055668,2.11519598,223.38,223.31,2.11519598]
[1759876055865,34.21519598,223.37,223.28,10.87647521]
[1759876056073,32.1,223.36,223.3,2.11519598]
[1759876056464,0.68,223.35,223.3,2.11519598]
[1759876056777,0.68,223.34,223.3,2.11519598]
[1759876057263,0.68,223.33,223.3,2.11519598]
[1759876057862,0.68,223.33,223.3,6.59346077]
[1759876058264,0.68,223.33,223.29,2.11519598]
[1759876058466,0.68,223.33,223.29,2.82519598]
[1759876058796,32.1,223.32,223.26,0.2]
[1759876059451,32.1,223.32,223.26,0.9]
[1759876059852,0.71,223.31,223.26,0.2]
[1759876060068,0.71,223.3,223.26,0.2]
[1759876060275,0.71,223.29,223.26,0.2]
[1759876060782,0.71,223.29,223.26,4.6790789]
[1759876061451,32.13,223.32,223.27,2.11519598]
[1759876061655,0.71,223.31,223.27,2.11519598]
[1759876061853,0.71,223.3,223.26,6.79427488]
[1759876062466,31.42,223.32,223.26,6.79427488]
[1759876062671,0.71,223.3,223.26,6.79427488]
[1759876062884,0.71,223.3,223.26,7.49427488]
[1759876063181,31.42,223.32,223.26,6.79427488]
[1759876063381,0.71,223.31,223.26,6.79427488]
[1759876063553,31.42,223.32,223.26,6.79427488]
[1759876063756,0.71,223.3,223.26,6.79427488]
[1759876064460,0.71,223.3,223.26,7.49427488]
[1759876066678,20.8,223.35,223.29,2.11519598]
[1759876066989,31.4,223.34,223.33,2.11519598]
[1759876067160,4.47648363,223.39,223.33,2.11519598]
[1759876067161,32.13,223.37,223.33,2.11519598]
[1759876067478,0.71,223.36,223.33,2.11519598]
[1759876067880,0.71,223.36,223.32,2.11519598]
[1759876068189,31.42,223.37,223.33,0.7]
[1759876068365,32.13,223.37,223.33,0.7]
[1759876068764,32.13,223.37,223.33,2.81519598]
[1759876068973,32.13,223.37,223.33,2.11519598]
[1759876069799,31.42,223.37,223.35,2.11519598]
[1759876069962,31.42,223.37,223.34,0.7]
[1759876070271,31.42,223.37,223.35,2.81519598]
[1759876070477,31.42,223.37,223.35,2.11519598]
[1759876070676,31.42,223.37,223.34,4.4774389]
[1759876070863,31.42,223.37,223.35,2.11519598]
[1759876071264,0.71,223.39,223.35,2.11519598]
[1759876071466,32.13,223.39,223.35,2.11519598]
[1759876071683,5.18600804,223.42,223.37,2.11519598]
[1759876071861,5.18600804,223.42,223.4,2.11519598]
[1759876071862,31.42,223.41,223.4,2.11519598]
[1759876072878,31.42,223.42,223.4,2.11519598]